Cogmind - Beta 15 @@@ ROGUE MODE // 2025.07.08 @ 15:37:17 Player: SirusTheMadDJ Result: Destroyed by YL-AWI(j) with Overtuned Pulse Rifle Performance ------------- Evolutions (0) 0 Regions Visited (3) 600 Robots Destroyed (34) 170 Value Destroyed (1102) 1102 Prototype IDs (0) 0 Alien Tech Used (0) 0 Bonus (644) 644 TOTAL SCORE: 2516 Bonus ------- Registered with UFD 300 Met Optimus in HQ 500 Friendly Fire -156 Cogmind --------- Core Integrity 0/250 Matter 129/300 Energy 94/100 System Corruption 1% Temperature Warm (119) Movement Walking (120) Location -9/Scraptown Parts ------- > --- POWER (1) -------- (None) > --- PROPULSION (2) --- Carbon-fiber Leg > --- UTILITY (2) ------ Medium Storage Unit Visual Processing Unit > --- WEAPON (2) ------- Assault Rifle Grenade Launcher > --- INVENTORY (10) --- Sensor Array Signal Interpreter Terrain Scanner Seismic Detector Targeting Computer A0-MCA's Component Scanner Small Laser Datajack Shrapnel Trap Peak State ------------ > --- POWER ------------ Light Deuterium Engine > --- PROPULSION ------- Overtuned Titanium Leg Overtuned Titanium Leg > --- UTILITY ---------- Medium Storage Unit Visual Processing Unit > --- WEAPON ----------- Assault Rifle Gauss Rifle > --- INVENTORY -------- Sensor Array Signal Interpreter Terrain Scanner Seismic Detector Targeting Computer A0-MCA's Component Scanner Small Laser Grenade Launcher Datajack Shrapnel Trap [Rating: 18] Favorites ----------- Power Light Ion Engine Engine Light Ion Engine Propulsion Aluminum Leg Leg Aluminum Leg Wheel Compact Wheel Utility Visual Processing Unit Storage Medium Storage Unit Processor Visual Processing Unit Protection Light Armor Plating Weapon Small Laser Energy Gun Small Laser Energy Cannon Beam Cannon Ballistic Gun Assault Rifle Launcher Grenade Launcher Build | -11 -10 -10 -9 ------- Run | Yrd Mat Sub Scr Slots Evolved . | . . . . Power . | . . . . Propulsion . | . . . . Utility . | . . . . Weapon . | . . . . Parts Attached 30 | 6 16 1 7 Power 6 | 1 4 . 1 Engine 6 | 1 4 . 1 Core . | . . . . Reactor . | . . . . Propulsion 11 | 2 5 . 4 Treads . | . . . . Leg 9 | 2 3 . 4 Wheel 2 | . 2 . . Hover . | . . . . Flight . | . . . . Utility 4 | 1 3 . . Device . | . . . . Storage 2 | 1 1 . . Processor 1 | . 1 . . Hackware . | . . . . Protection 1 | . 1 . . Artifact . | . . . . Weapon 9 | 2 4 1 2 Energy Gun 2 | . 2 . . Energy Cannon 1 | . 1 . . Ballistic Gun 5 | 2 1 . 2 Ballistic Cannon . | . . . . Launcher 1 | . . 1 . Special Weapon . | . . . . Impact Weapon . | . . . . Slashing Weapon . | . . . . Piercing Weapon . | . . . . Special Melee Weapon . | . . . . Unidentified Prototypes . | . . . . Parts Lost 6 | . 4 . 2 Power 2 | . 1 . 1 Propulsion 2 | . 2 . . Utility 1 | . 1 . . Weapon 1 | . . . 1 Highest Loss Streak 2 | . 2 . 2 To Critical Strikes . | . . . . Average Backups 7 | 1 6 8 8 Power . | . . . . Propulsion . | . . . . Utility 4 | . 2 5 5 Weapon 1 | . 1 2 2 Tool/Special . | . . . . Unused Backups 7 | . . . 7 Power . | . . . . Propulsion . | . . . . Utility 6 | . . . 6 Weapon . | . . . . Tool/Special 1 | . . . 1 Average Slot Usage (%) 98 | . 95 100 99 Engine 13 | . 14 14 13 Leg 25 | . 18 28 27 Wheel 2 | . 9 . . Storage 14 | . 14 14 14 Processor 12 | . 7 14 14 Energy Gun 12 | . 13 14 12 Energy Cannon 2 | . 2 6 . Ballistic Gun 5 | . 12 . 3 Launcher 7 | . . 7 12 Peak Build Rating 18 | 6 9 8 18 Average Rating 8 | 4 7 8 9 On Entrance 5 | . 6 8 8 Naked Turns . | . . . . Heaviest Build 21 | 13 17 17 21 Greatest Support 38 | 20 26 20 38 Greatest Overweight (x) 4 | 4 1 . 1 Average Overweight (x) . | . . . . Largest Inventory Capacity 10 | 8 10 10 10 Average Capacity 9 | 7 8 10 10 Most Carried 10 | 4 8 9 10 Average Carried 8 | 1 6 8 9 Final Capacity 10 | 8 10 10 10 Final Carried 9 | 4 8 9 9 Class Distribution -------------------- 79% | Scavenger-Mutant 20% | Mutant Dominant Class ---------------- Mutant | -10/Materials Scavenger-Mutant | -10/Subcaves Scavenger-Mutant | -9/Scraptown Resources | -11 -10 -10 -9 ----------- Run | Yrd Mat Sub Scr Matter Collected 1051 | 185 526 95 245 Remotely . | . . . . Salvage Created 1395 | . 898 79 418 Parts 71 | . 45 8 18 Haulers Intercepted 2 | . 2 . . Recyclers Shooed 2 | . 2 . . Parts Field Recycled . | . . . . Retrieved Matter . | . . . . Parts Self-Destructed 6 | . . 6 . Prevented . | . . . . Kills | -11 -10 -10 -9 ------- Run | Yrd Mat Sub Scr Combat Hostiles Destroyed 29 | . 20 2 7 Guns 28 | . 20 1 7 AOE 1 | . . 1 . Classes Destroyed 10 | . 5 1 4 Hauler 2 | . 2 . . Operator 1 | . 1 . . Watcher 2 | . 2 . . Swarmer 3 | . 3 . . Grunt 17 | . 17 . . Subdweller 2 | . . 2 . Federalist 1 | . . . 1 Explorer 1 | . . . 1 Ranger 1 | . . . 1 Scrapper 4 | . . . 4 Best Kill Streak 4 | . 4 1 4 Combat Bots Only 4 | . 4 1 4 Max Kills in Single Turn 2 | . 2 1 1 Gunslinging 1 | . 1 . . Exploded 1 | . . 1 . Melee . | . . . . Uniques/NPCs Destroyed . | . . . . Combat | -11 -10 -10 -9 -------- Run | Yrd Mat Sub Scr Hostile Shots Fired 185 | . 137 15 33 Missed 54 | . 39 7 8 Hits 131 | . 98 8 25 Projectile 131 | . 98 8 25 Critical Strikes 7 | . 2 1 4 Damage Taken 1741 | . 1115 174 452 Core 256 | . 187 . 69 Absorbed by Shields . | . . . . Regen/Repaired (Parts) 243 | . . . 243 Core Remaining (%) 100 | 100 . . . Volleys Fired 168 | . 104 21 43 Largest 2 | . 2 2 2 Hottest 105 | . 105 100 80 Shots Fired 312 | . 195 34 83 Gun 283 | . 191 14 78 Cannon 21 | . 4 12 5 Launcher 8 | . . 8 . Special . | . . . . Kinetic 202 | . 124 . 78 Thermal 102 | . 71 26 5 Explosive 8 | . . 8 . Electromagnetic . | . . . . Robot Hit Streak 14 | . 14 6 8 Robot Miss Streak 8 | . 8 3 4 Penetration Max . | . . . . Secondary Targets 6 | . 4 . 2 Max Gunslinging Chain 1 | . 1 . 1 Shots Hit Robots 188 | . 122 16 50 Core Hits 70 | . 46 4 20 Critical Kills . | . . . . Critical Parts Destroyed 1 | . . . 1 Critical Strikes 2 | . 1 . 1 Burn 1 | . 1 . . Destroy 1 | . . . 1 Melee Attacks . | . . . . Impact . | . . . . Slashing . | . . . . Piercing . | . . . . Sneak Attacks . | . . . . Combat Hostiles . | . . . . Follow-up Attacks . | . . . . Damage Inflicted 2481 | . 1530 141 810 Guns 2277 | . 1496 24 757 Cannons 141 | . 34 54 53 Explosions 63 | . . 63 . Melee . | . . . . Ramming . | . . . . Kinetic 1594 | . 837 . 757 Thermal 824 | . 693 78 53 Explosive 63 | . . 63 . Electromagnetic . | . . . . Impact . | . . . . Slashing . | . . . . Piercing . | . . . . Highest Corruption 1 | . 1 1 1 Average Corruption 1 | . 1 1 1 Corruption Purged . | . . . . Corruption Blocked . | . . . . Effects 29 | . 4 6 19 Message Errors 3 | . . 1 2 Matter Fused 10 | . 1 3 6 Heat Flow Errors 4 | . . 1 3 Energy Discharges 3 | . 1 . 2 Parts Rejected 1 | . . . 1 Data Loss (minor) 3 | . . 1 2 Data Loss (major) 2 | . . . 2 Misfires 1 | . 1 . . Alerts 2 | . 1 . 1 Overload Shots . | . . . . Overflow Damage . | . . . . Projectiles . | . . . . Explosions . | . . . . Melee . | . . . . Knockbacks . | . . . . Impact . | . . . . Kinetic . | . . . . Secondary . | . . . . Self-Inflicted Damage . | . . . . Shots . | . . . . Rammed . | . . . . Targets Rammed . | . . . . Kicked . | . . . . Crushed . | . . . . Highest Temperature 294 | . 294 231 236 Average Temperature 74 | . 74 116 71 Received Heat Transfer 840 | . 561 . 279 Effects 4 | . 4 . . Interference 4 | . 4 . . Siege Activations . | . . . . Martial Activations . | . . . . Shielding Activations . | . . . . Robots Disrupted . | . . . . Combat Hostiles . | . . . . Robots Corrupted . | . . . . Combat Hostiles . | . . . . Parts Fried . | . . . . Impact Corruptions . | . . . . Robots Melted 1 | . 1 . . Combat Hostiles . | . . . . Parts Melted 6 | . 2 . 4 Heat Transferred 1908 | . 1672 161 75 Parts Sabotaged . | . . . . Parts Stolen . | . . . . Parts Stripped . | . . . . Power Chain Reactions . | . . . . Alert | -11 -10 -10 -9 ------- Run | Yrd Mat Sub Scr Maximum Alert Level . | . . . . Low Security (%) 100 | 100 100 . . Level 1 . | . . . . Level 2 . | . . . . Level 3 . | . . . . Level 4 . | . . . . Level 5 . | . . . . High Security . | . . . . Max Security . | . . . . Peak Influence 166 | . 166 . . Initial . | . . . . Average 83 | . 88 . . Influence Increases 551 | . 551 . . Destroy 0b10 Robot/C 400 | . 400 . . Destroy 0b10 Robot/NC 25 | . 25 . . Destroy Leader 108 | . 108 . . Disable Machine 15 | . 15 . . Destroy Structure 3 | . 3 . . Influence Decreases 551 | . 474 77 . Entered New Map 37 | . . 37 . Time Decay 474 | . 434 40 . Lost Part 40 | . 40 . . Squads Dispatched 6 | . 6 . . Investigation 4 | . 4 . . Extermination . | . . . . Reinforcement 2 | . 2 . . Assault . | . . . . Garrison . | . . . . Intercept . | . . . . Searches Triggered . | . . . . Construction Impeded . | . . . . Haulers Reinforced . | . . . . Active Scanning Responses . | . . . . Cargo Convoy Interrupts . | . . . . Stealth | -11 -10 -10 -9 --------- Run | Yrd Mat Sub Scr Distress Signals 1 | . 1 . . Communications Jammed . | . . . . Distress Signals . | . . . . Times Spotted 59 | . 32 1 26 Peak Tracking Total 5 | . 4 1 5 Tactical Retreats . | . . . . Traps | -11 -10 -10 -9 ------- Run | Yrd Mat Sub Scr Traps Triggered 4 | . 4 . . Indirectly . | . . . . Trap Hack Attempts . | . . . . Triggered . | . . . . Disarmed . | . . . . Reprogrammed . | . . . . Reused . | . . . . Traps Extracted . | . . . . Installed . | . . . . Triggered . | . . . . Most Traps Carried 1 | . . 1 1 Machines | -11 -10 -10 -9 ---------- Run | Yrd Mat Sub Scr Machines Disabled 2 | . 1 . 1 Max in Single Turn 1 | . 1 . 1 Machines Repaired . | . . . . Machines Dismantled . | . . . . Machines Sabotaged . | . . . . Overloaded Fab Kills . | . . . . Hacking | -11 -10 -10 -9 --------- Run | Yrd Mat Sub Scr Machines Accessed 7 | . 1 . 6 Terminals 1 | . 1 . . Fabricators . | . . . . Repair Stations . | . . . . Recycling Units . | . . . . Scanalyzers . | . . . . Garrison Access . | . . . . Total Hacks 47 | . 4 . 43 Successful 45 | . 2 . 43 Failed 2 | . 2 . . Catastrophic 1 | . 1 . . Database Lockouts . | . . . . Manual 3 | . . . 3 Terminals 4 | . 4 . . Fabricators . | . . . . Repair Stations . | . . . . Recycling Units . | . . . . Scanalyzers . | . . . . Garrison Access . | . . . . Terminal Hacks 45 | . 2 . 43 Record 39 | . 2 . 37 Robot Analysis 6 | . . . 6 Fabricator Hacks . | . . . . Repair Station Hacks . | . . . . Recycling Unit Hacks . | . . . . Scanalyzer . | . . . . Garrison Access Hacks . | . . . . Unauthorized Hacks . | . . . . Terminals . | . . . . Fabricators . | . . . . Repair Stations . | . . . . Recycling Units . | . . . . Scanalyzers . | . . . . Garrison Access . | . . . . Data Cores Recovered . | . . . . Used . | . . . . Hacking Detections 1 | . 1 . . Full Trace Events 1 | . 1 . . Feedback Events . | . . . . Feedback Blocked . | . . . . Robot Schematics Acquired . | . . . . Robots Built . | . . . . Authchips . | . . . . Time . | . . . . Total Robot Build Rating . | . . . . Part Schematics Acquired . | . . . . Parts Built . | . . . . Authchips . | . . . . Time . | . . . . Total Part Build Rating . | . . . . Parts Repaired . | . . . . Time . | . . . . Parts Recycled . | . . . . Recycled Matter . | . . . . Retrieved Matter . | . . . . Retrieved Components . | . . . . Parts Scanalyzed . | . . . . Part Schematics Acquired . | . . . . Parts Damaged . | . . . . Bothacking | -11 -10 -10 -9 ------------ Run | Yrd Mat Sub Scr Used RIF Installer . | . . . . Robots Hacked . | . . . . Non-combat . | . . . . Combat . | . . . . Robot Hacks Applied . | . . . . Relay Couplers Released . | . . . . Fabnet Peak Effective % . | . . . . Robots Rewired . | . . . . Allies Hacked . | . . . . Hacks Repelled . | . . . . Allies | -11 -10 -10 -9 -------- Run | Yrd Mat Sub Scr Total Allies . | . . . . Largest Group . | . . . . Highest-Rated Group . | . . . . Highest-Rated Ally . | . . . . Total Orders . | . . . . Ally Attacks . | . . . . Total Damage . | . . . . Kills . | . . . . Allies Corrupted . | . . . . Allies Melted 1 | . . . 1 Intel | -11 -10 -10 -9 ------- Run | Yrd Mat Sub Scr Active Infowar (turns) 3378 | . 625 887 1866 Optics 3378 | . 625 887 1866 Robot Analysis Total 6 | . . . 6 Derelict Logs Recovered 1 | . . 1 . Drone Launches . | . . . . Drone Recoveries . | . . . . Exploration | -11 -10 -10 -9 ------------- Run | Yrd Mat Sub Scr Turns Passed 3997 | 69 1175 887 1866 Spaces Moved 2881 | 51 716 675 1439 Core 16 | 16 . . . Treads . | . . . . Legs 2599 | 35 450 675 1439 Wheels 266 | . 266 . . Hover . | . . . . Flight . | . . . . Fastest Speed 50 | 50 90 120 100 Average Speed 117 | 110 110 120 119 Slowest Speed 250 | 250 190 120 170 Overloaded Moves . | . . . . Propulsion Burnouts . | . . . . Robots Hopped . | . . . . Potential Cave-ins 1 | . . 1 . Cave-ins Triggered . | . . . . Exploration Rate (%) 49 | 4 85 24 84 Regions Visited 3 Branch Regions 2 Pre-discovered Areas 1 | . . 1 . Known Exits Taken . | . . . . Unknown Exits Taken 3 | 1 1 1 . Scrap Searched 9 | . . 6 3 Spaces Dug 17 | . . 17 . Terrain Destroyed 37 | . . 37 . Melee . | . . . . Projectile . | . . . . AOE 37 | . . 37 . Terrain Rammed . | . . . . Walls Destroyed . | . . . . Machines Disabled . | . . . . Actions | -11 -10 -10 -9 --------- Run | Yrd Mat Sub Scr Total 3186 | 61 910 717 1498 Wait 69 | . 49 20 . Move 2878 | 50 715 674 1439 Hop . | . . . . Pick Up 21 | 5 14 1 1 Fast Attach 12 | 5 3 . 4 Attach 6 | 1 4 . 1 Detach . | . . . . Swap 15 | . 10 1 4 Drop 17 | . 11 . 6 Fire 168 | . 104 21 43 Melee . | . . . . Ram . | . . . . Kick . | . . . . Crush . | . . . . Escape Stasis . | . . . . Rewire . | . . . . Trap . | . . . . Miscellaneous . | . . . . Route ------- -11/Scrapyard -10/Materials (discovered 5 exits: [*Mat x3] / [*Min] / [*Sub]) -10/Subcaves -9/Scraptown (discovered 2 exits: *Fac x2) History --------- Turn | Location | Event 19 | -11/Scrapyard | Discovered new exit (range 15) 70 | -11/Scrapyard | Entered Materials 302 | -10/Materials | Build established: Mutant 332 | -10/Materials | Discovered new exit (range 5) 508 | -10/Materials | Discovered new exit (range 11) 510 | -10/Materials | Discovered new exit (range 6) 642 | -10/Materials | Discovered new exit (range 17) 719 | -10/Materials | Core integrity fell below 50% 804 | -10/Materials | Discovered new exit (range 15) 1245 | -10/Materials | Entered Subcaves 1246 | -10/Subcaves | Approached by a straggling Scientist 1268 | -10/Subcaves | Learned location of Zion (-6) 1282 | -10/Subcaves | Shifting Twisted Machinery released Scrap Shield 1370 | -10/Subcaves | A swath of the cavern ceiling suddenly collapsed 1407 | -10/Subcaves | Build established: Scavenger-Mutant 2112 | -10/Subcaves | Ambushed by Subdweller buried in earth 2130 | -10/Subcaves | Scientist uncovered a shortcut to Scraptown 2132 | -10/Subcaves | Entered Scraptown 2219 | -9/Scraptown | Visited The Evicted 2524 | -9/Scraptown | Discovered new exit (range 11) 2675 | -9/Scraptown | Visited SPCMW 2724 | -9/Scraptown | Visited CR-KLE's Repair Center 2732 | -9/Scraptown | CR-KLE repaired 4 parts 3079 | -9/Scraptown | Visited UFD Registry 3079 | -9/Scraptown | Registered with UFD as "Matterrigger" 3089 | -9/Scraptown | Visited Bundlers 3131 | -9/Scraptown | Visited TADAMA 3174 | -9/Scraptown | Visited Cyclists 3194 | -9/Scraptown | Entered Cyclist Reading Room 3229 | -9/Scraptown | Visited Symbiants 3377 | -9/Scraptown | Visited Science Guys 3415 | -9/Scraptown | Received an X-ray algorithm 3416 | -9/Scraptown | Visited A0-MCA Data Center 3424 | -9/Scraptown | Given an A- rating by A0-MCA 3430 | -9/Scraptown | Found A0-MCA's Component Scanner 3455 | -9/Scraptown | Visited Scrap Suit Storage 3651 | -9/Scraptown | Visited Analyses Database 3697 | -9/Scraptown | Met Optimus 3697 | -9/Scraptown | Accepted into 0bPrime 3704 | -9/Scraptown | Ran an X-ray algorithm 3748 | -9/Scraptown | Civil war broke out across Scraptown 3823 | -9/Scraptown | Identified exit to Factory 3844 | -9/Scraptown | Lost 13 allies 3939 | -9/Scraptown | Optimus destroyed in the chaos of civil war 3975 | -9/Scraptown | Core integrity fell below 20% 3998 | -9/Scraptown | Destroyed by YL-AWI(j) with Overtuned Pulse Rifle Last Messages --------------- Penetrated by Bolt. ZM-KY8(j): "We are one!" Slug penetrates GB-4WI(h). Penetrated by Bolt. GB-4WI(h) destroyed. Switching to secondary target: Q1-DVH(x). Slug penetrates YL-AWI(j). N3-BXR(j) destroyed. Q1-DVH(x) destroyed. System corrupted: Carbon-fiber Leg rejected. KD-26Z(g) heat short circuits Aluminum Leg. ZM-KY8(j) destroyed. Critical hit (Burn: +50). Lgt. Deuterium Engine destroyed. Critical hit (Burn: +50). Slug penetrates Machine. KD-26Z(g) destroyed. Slug penetrates 92-5E9(j). Gauss Rifle destroyed. Critical hit (Burn: +50). Map ----- +----------------------------------------------------+ | #????????"""" """"""""""" """ | | #????????" | | #????????" | | #???????#" | | #???????#" | | ############ #??????##" | | ???????????# #?????""" """""""""""""" | | ???????????# #????"""" """?""""""""?? | | ############ #????"""" ""###### #### | | "" """" " # / =% =!=#????"""" ""# | | "$$" # * [%!#????""""=[ =*[""# | | #=% !!* ###?#"""" %=%""# "" "" | | # ==%[ ""#"#"""" !!=!""# "" "" | | # !!%!= """"#?""" !=%g "# " " | | # =%* ==!""###??#""%=* "" | | ## " [ !==###?????"=* *%!"" "" = | | ?# !* ! %=*%#########* != ""# " !%" | | ?# %[[%= !%!/*![ [%[ % ""# "" "" | | ?# = ! [=[%=%= =!! "# "" "" | | ?#"$" "$" ; [ %*[%[%* !%! ""# | | ?#""" """ ;[ !%!!!=*!*= =! ""# | | ##########=!% TT!!%==! % "#####" #### | | %! !%%* TT =[= = """"""" """ | | =[ [=! ! """"""" " " | | = ! ===%[=!** ! | | @ %!!j!!%%= *% | | %/ % !*j==*=% / | | %! =%!*= #""""# [! %!%%!* ! | | [ [%==!! #????# =%*= %!! !%! | | [!=%=!= #????#" =" [ ""==% | | ##############%###%!%####????######" ##;;"######=# | | ""#???# = !* !#????????#" #?# | | " "#???# = # #????????# "#?#""" | | "#???# =%[# #????????#"" "" "&#?#""" | | "#???# [! = # #????????#"" "" " #?#"!" | | "#???# %"""""% # #????????#"" #?#""" | | "#???# """" #= #????????#"""" ""#?#""" | | ""#???# """" #%= #????????#""" """"#?#""""" | | ""#???# #* #????????#" "|""#?#""""" | | """#???# # #????????#""" """"#?#""""" | | """#???########### #????????#""""" X """#?#""""" | | ####?????????????# #????????#"""""""""""#?###### | | ??????############ #????????#############??????? | | ??????#""""""""""" #????######################## | | ??????#""""" """"" #????# ##"""##"""##"" | | #######"""" " "" #????# """"""" ## ""## ""##" | | # #????# """"""" | | # #####"" "" "" " #????# """"""" | | " "#??#""""""""""" #????# """"""" | | " "#??#""""""""""" #????# """"""" ##"""##"""##"" | +----------------------------------------------------+ Best States ------------- Heat Dissipation 25 Energy Generation 14 Energy Capacity 250 Matter Stores 300 Matter Capacity 300 Sight Range 18 Terrain Scan Density 10 Armor Coverage 150 Evasion (%) 55 Item Schematics ----------------- None Robot Schematics ------------------ None Fabricated ------------ Nothing Repaired ---------- Nothing Alien Tech Used ----------------- None Achievements -------------- Armchair Analyst Dramatic Entrance Challenges ------------ None Game ------ Seed ProtonTimingPropulsion Manual? 0 Play Time 00:44:01 Cumulative 15.9 hours Start 2025.07.08 @ 14:53:27 End 2025.07.08 @ 15:37:17 Sessions 1 Manual Loads 0 Difficulty Rogue Special Mode None Game No. 36 Rogue 36 Adventurer 0 Explorer 0 Win Type - Total 0 Types 0/0/0/0/0/0/0/0/0/0 Lore% 13 Gallery% 17 Achievement% 17 Wizard Run 0 Options --------- Layout 1 ASCII 0 Keyboard 0 Movement Mouse Keybinds 0 Fullscreen 1 Font 24/Smallcaps Map View 50x35 Zoom Use 0% Tactical HUD 0 Map Filters NONE Filters NONE Steam 1 RUN: 7d965c66-21c0-4f11-9652-702bf0c24128